bitfinex/quotes_SOLUSD_20240916
["timestamp","ask_amount","ask_price","bid_price","bid_amount"]
[1726513722064,0.0796311,131.1,131.09,53.30257848]
[1726513725565,0.0796311,131.1,131.09,37.6283]
[1726513726777,0.0796311,131.1,131.09,53.30257848]
[1726513732090,0.0796311,131.1,131.09,37.6283]
[1726513732288,0.0796311,131.1,131.09,97.07946248]
[1726513735793,0.0796311,131.1,131.09,100.8251989]
[1726513736991,3.11e-05,131.1,131.09,111.79009559]
[1726513738174,3.11e-05,131.1,131.09,108.04449187]
[1726513738901,3.11e-05,131.1,131.09,111.78973964]
[1726513740389,3.11e-05,131.1,131.09,88.01285564]
[1726513740767,3.11e-05,131.1,131.09,77.04782625]
[1726513741191,3.11e-05,131.1,131.09,88.01316534]
[1726513741368,3.11e-05,131.1,131.09,84.26791757]
[1726513741689,3.11e-05,131.1,131.09,88.0134087]
[1726513742875,3.11e-05,131.1,131.09,61.37379113]
[1726513743190,3.11e-05,131.1,131.09,57.6283]
[1726513743885,3.11e-05,131.1,131.09,27.6283]
[1726513744076,3.11e-05,131.1,131.09,44.45925365]
[1726513744277,3.11e-05,131.1,131.09,77.04851103]
[1726513744780,3.11e-05,131.1,131.09,73.30257848]
[1726513745993,3.11e-05,131.1,131.09,37.6283]
[1726513747290,3.11e-05,131.1,131.09,7.6283]
[1726513751881,3.11e-05,131.1,131.08,26.7004]
[1726513752200,16.2932,131.08,131.05,19.076]
[1726513752505,17.81300975,131.08,131.05,19.076]
[1726513753580,16.2932,131.08,131.07,7.6295]
[1726513754000,6.2759311,131.1,131.08,7.6285]
[1726513754491,3.11e-05,131.1,131.09,7.6283]
[1726513755693,3.11e-05,131.1,131.09,23.30257848]
[1726513756519,3.11e-05,131.1,131.09,43.30257848]
[1726513764714,3.11e-05,131.1,131.09,7.6283]
[1726513769010,3.11e-05,131.1,131.07,19.0727]
[1726513770423,3.11e-05,131.1,131.09,7.6283]
[1726513780237,3.11e-05,131.1,131.07,26.7018]
[1726513780448,18.12534085,131.1,131.07,26.7018]
[1726513781135,25.75304085,131.1,131.07,26.7018]
[1726513781344,25.75304085,131.1,131.05,7.6301]
[1726513781520,31.405184,131.09,131.05,7.6301]
[1726513781845,31.405184,131.09,131.04,19.0769]
[1726513781846,31.406384,131.07,131.04,19.0769]
[1726513782024,1.51980975,131.06,131.04,19.0769]
[1726513782538,9.14990975,131.06,131.02,7.6323]
[1726513782709,25.31880975,131.06,131.02,7.6323]
[1726513783333,23.776884,131.05,131.01,26.7143]
[1726513783543,1.51980975,131.04,131.01,26.7143]
[1726513785211,31.407684,131.05,131.01,26.7143]
[1726513786138,1.51980975,131.04,131.01,26.7143]
[1726513786644,31.407684,131.05,131.01,26.7143]
[1726513787139,23.776884,131.05,131.01,26.7143]
[1726513789444,16.1689,131.06,131.05,7.6306]
[1726513789944,16.1689,131.06,131.04,7.631]
[1726513790446,16.1689,131.06,131.05,7.6306]
[1726513792239,16.1689,131.06,131.04,7.631]
[1726513792945,16.1689,131.06,131.03,26.7107]
[1726513793157,25.29669375,131.05,131.02,7.6324]
[1726513793327,1.51980975,131.04,131.02,7.6324]
[1726513793842,1.51980975,131.04,131.0,19.3411025]
[1726513793843,1.51980975,131.04,131.01,7.6329]
[1726513796625,23.776884,131.03,131.0,26.9744025]
[1726513796953,1.51980975,131.02,131.0,19.3411025]
[1726513797128,1.51980975,131.01,131.0,19.3411025]
[1726513797650,25.29669375,131.01,131.0,0.2583025]
[1726513798237,23.776884,131.01,131.0,0.2583025]
[1726513799149,1.51980975,131.03,131.0,7.8918025]
[1726513799337,23.776884,131.02,131.0,7.8918025]
[1726513800021,1.51980975,131.01,131.0,7.8918025]
[1726513800548,1.51980975,131.01,131.0,0.2583025]
[1726513800853,6.6588,131.05,131.01,7.6328]
[1726513800854,25.29669375,131.04,131.01,7.6328]
[1726513801054,16.1689,131.06,131.01,19.0818]
[1726513801648,17.68870975,131.06,131.02,7.6322]
[1726513801952,16.1689,131.06,131.01,19.0818]
[1726513802126,16.1689,131.06,131.03,19.0788]
[1726513803059,14.0215,131.08,131.03,19.0788]
[1726513803351,14.0215,131.08,131.04,7.6312]
[1726513803952,1.51980975,131.07,131.03,26.7104]
[1726513804129,1.51980975,131.06,131.03,26.7104]
[1726513804957,1.51980975,131.06,131.01,7.6324]
[1726513804958,9.14990975,131.06,131.01,7.6324]
[1726513805129,23.776884,131.05,131.01,7.6324]
[1726513806237,23.776884,131.05,131.02,7.6323]
[1726513806439,6.3926,131.08,131.03,7.6317]
[1726513806629,23.776884,131.07,131.03,7.6317]
[1726513807137,25.29669375,131.07,131.03,7.6317]
[1726513807332,32.92619375,131.07,131.03,7.6317]
[1726513808056,31.406384,131.07,131.03,7.6317]
[1726513808430,32.92619375,131.07,131.03,7.6317]
[1726513809755,7.6302,131.06,131.02,26.7128]
[1726513809936,25.29669375,131.05,131.02,26.7128]
[1726513810258,1.51980975,131.04,131.02,26.7128]
[1726513810757,1.51980975,131.04,131.02,19.0806]
[1726513811357,23.776884,131.05,131.02,19.0806]
[1726513811553,23.776884,131.05,131.02,26.7129]
[1726513812846,23.776884,131.05,131.03,7.6317]
[1726513813050,23.776884,131.07,131.04,7.6311]
[1726513813771,1.51980975,131.06,131.03,7.6316]
[1726513813947,23.776884,131.07,131.03,7.6316]
[1726513813948,31.406384,131.07,131.03,7.6316]
[1726513814341,1.51980975,131.06,131.03,7.6316]
[1726513814542,23.776884,131.05,131.02,26.7128]
[1726513814869,31.408684,131.03,131.0,0.2583025]
[1726513815166,1.51980975,131.02,131.0,0.2583025]
[1726513815353,1.51980975,131.01,131.0,0.2583025]
[1726513816438,1.51980975,131.02,131.0,0.2583025]
[1726513817169,1.51980975,131.01,131.0,0.2583025]
[1726513817342,32.92849375,131.03,131.0,0.2583025]
[1726513817737,23.776884,131.03,131.0,7.8918025]
[1726513818138,23.776884,131.03,131.01,7.6329]
[1726513818362,7.6308,131.05,131.01,7.6329]
[1726513818363,23.776884,131.04,131.01,7.6329]
[1726513818561,23.776884,131.04,131.02,7.6323]
[1726513818738,31.407584,131.05,131.01,26.7151]
[1726513818942,32.92739375,131.05,131.01,26.7151]
[1726513819155,1.51980975,131.04,131.01,26.7151]
[1726513819463,31.407584,131.05,131.01,26.7151]
[1726513823471,9.15140975,131.04,131.01,19.0823]
[1726513823644,23.776884,131.03,131.0,7.8916025]
[1726513823970,1.51980975,131.02,131.0,0.2583025]
[1726513825046,1.51980975,131.02,131.0,7.8918025]
[1726513825245,23.776884,131.03,131.0,7.8918025]
[1726513826170,1.51980975,131.02,131.0,7.8918025]
[1726513826869,23.776884,131.03,131.0,7.8918025]
[1726513827180,23.776884,131.04,131.01,7.6329]
[1726513827867,23.3731,131.07,131.03,7.6317]
[1726513828948,23.776884,131.06,131.03,7.6317]
[1726513829953,31.406984,131.06,131.02,26.713]
[1726513830164,1.51980975,131.05,131.0,22.8539025]
[1726513830371,32.92789375,131.04,131.0,7.8915025]
[1726513830748,7.6324,131.02,131.0,0.2583025]
[1726513831076,23.776884,131.01,131.0,0.2583025]
[1726513834881,31.409884,131.01,131.0,0.2583025]
[1726513835182,31.409884,131.01,130.96,0.2583336]
[1726513835183,7.6345,130.99,130.96,0.2583336]
[1726513835484,25.29669375,130.98,130.96,0.2583336]
[1726513835852,23.776884,130.98,130.96,0.2583336]
[1726513836182,25.29669375,130.97,130.96,0.2583336]
[1726513837582,32.93199375,130.97,130.96,0.2583336]
[1726513837772,31.412184,130.97,130.96,0.2583336]
[1726513839474,32.93199375,130.97,130.96,0.2583336]
[1726513840100,31.412184,130.97,130.96,0.2583336]
[1726513841869,32.93199375,130.97,130.96,0.2583336]
[1726513845476,32.93199375,130.97,130.92,7.8965336]
[1726513845477,7.6367,130.95,130.92,0.2583336]
[1726513845667,1.51980975,130.94,130.92,0.2583336]
[1726513845862,23.776884,130.93,130.92,0.2583336]
[1726513851097,7.6367,130.95,130.92,0.2583336]
[1726513851282,1.33158481,130.98,130.92,0.2583336]
[1726513851283,23.776884,130.97,130.92,0.2583336]
[1726513851673,23.776884,130.95,130.92,7.8963336]
[1726513860605,25.29669375,130.95,130.92,7.8963336]
[1726513861306,32.93319375,130.95,130.92,0.2583336]
[1726513863126,1.33158481,130.98,130.92,0.2583336]
[1726513863127,31.414484,130.93,130.92,0.2583336]
[1726513864204,32.93429375,130.93,130.92,0.2583336]
[1726513864496,31.414484,130.93,130.92,0.2583336]
[1726513865986,23.776884,130.93,130.92,0.2583336]
[1726513866689,31.414484,130.93,130.92,0.2583336]
[1726513867290,31.414484,130.93,130.88,42.1291336]
[1726513867291,23.776884,130.9,130.88,0.2583336]
[1726513867501,23.776884,130.89,130.88,0.2583336]
[1726513869906,7.639,130.91,130.88,0.2583336]
[1726513870105,23.776884,130.91,130.88,7.8988336]
[1726513870315,15.8223,130.97,130.89,19.0995]
[1726513870515,15.8223,130.97,130.89,34.7899]
[1726513870721,20.41901188,130.98,130.91,19.0965]
[1726513871030,28.83994575,130.98,130.91,19.0965]
[1726513871203,7.6369,130.95,130.91,26.7351]
[1726513871623,1.51980975,130.94,130.91,26.7351]
[1726513872526,23.776884,130.93,130.91,26.7351]
[1726513872897,23.776884,130.94,130.91,26.7351]
[1726513874924,23.776884,130.94,130.91,26.7349]
[1726513880009,31.414084,130.94,130.91,19.0965]
[1726513881328,23.776884,130.94,130.91,19.0965]
[1726513881506,23.776884,130.94,130.92,7.6381]
[1726513881829,23.776884,130.95,130.92,7.6381]
[1726513882128,25.29669375,130.95,130.92,7.6381]
[1726513887408,23.776884,130.96,130.93,7.6376]
[1726513887733,7.6349,130.98,130.94,7.637]
[1726513888630,16.1653,131.0,130.96,7.6356]
[1726513888631,7.6337,131.0,130.96,7.6356]
[1726513888836,9.15390975,130.99,130.95,26.7266]
[1726513889028,1.51980975,130.98,130.95,19.0904]
[1726513889228,16.1230696,131.02,130.97,19.0881]
[1726513889403,7.8908336,131.02,130.97,19.0881]
[1726513889610,7.8908336,131.02,130.98,7.6343]
[1726513889835,1.51980975,131.01,130.97,26.7232]
[1726513890338,7.6334,131.01,130.97,26.7232]
[1726513890525,1.51980975,131.0,130.97,19.0881]
[1726513890833,7.6334,131.01,130.97,19.0881]
[1726513892026,23.776884,131.0,130.97,19.0881]
[1726513892417,23.776884,131.0,130.97,26.7232]
[1726513894624,23.776884,131.0,130.98,7.6342]
[1726513895034,23.776884,131.01,130.98,7.6342]
[1726513900531,23.776884,131.01,130.99,7.6339]
[1726513901042,24.0352176,131.02,130.99,7.6339]
[1726513901242,24.0352176,131.02,131.0,7.6335]
[1726513901544,0.2583336,131.02,131.0,7.6335]
[1726513902650,0.2583336,131.02,130.99,26.7191]
[1726513902941,1.51980975,131.01,130.99,26.7191]
[1726513903148,0.2583336,131.02,130.99,26.7191]
[1726513903527,0.2583336,131.02,131.0,7.6335]
[1726513904129,0.2583336,131.02,130.99,26.719]
[1726513910131,1.77814335,131.02,130.99,26.719]
[1726513910340,23.776884,131.01,130.99,26.719]
[1726513910637,23.776884,131.01,130.96,6.3807]
[1726513910638,1.51980975,131.0,130.98,7.6345]
[1726513913863,23.776884,130.99,130.97,7.6351]
[1726513920066,25.29669375,130.98,130.96,26.7243]
[1726513920267,23.776884,130.97,130.96,26.7243]
[1726513920651,23.776884,130.97,130.96,19.0886]
[1726513921547,23.776884,130.97,130.96,26.7245]
[1726513923042,0.2583336,131.02,130.96,19.0886]
[1726513923471,23.776884,131.01,130.96,19.0886]
[1726513924252,23.776884,131.01,130.98,7.6347]
[1726513925181,1.51980975,131.0,130.97,7.6351]
[1726513925364,23.776884,130.99,130.97,7.6351]
[1726513925677,1.51980975,130.98,130.96,19.0886]
[1726513925968,23.776884,130.99,130.96,19.0886]
[1726513926178,23.776884,130.99,130.97,7.6347]
[1726513926750,23.776884,130.99,130.98,7.6347]
[1726513929373,7.633,131.01,130.97,7.6351]
[1726513929693,23.776884,131.0,130.97,7.6351]
[1726513933062,1.51980975,130.99,130.97,7.6351]
[1726513933482,23.776884,131.0,130.97,7.6351]
[1726513933797,1.51980975,130.99,130.97,7.6351]
[1726513935278,23.776884,131.0,130.97,7.6351]
[1726513936898,7.8908336,131.02,130.98,7.6346]
[1726513937068,23.776884,131.01,130.98,7.6346]
[1726513938077,31.409884,131.01,130.98,7.6346]
[1726513938278,32.92969375,131.01,130.97,7.6351]
[1726513938686,7.6336,131.0,130.97,7.6351]
[1726513939005,31.410084,131.01,130.97,7.6351]
[1726513939304,23.776884,130.99,130.96,19.0886]
[1726513939672,23.776884,130.99,130.96,26.7244]
[1726513940298,31.411184,130.99,130.94,15.1307]
[1726513940997,31.411184,130.99,130.93,25.4586]
[1726513940998,7.6348,130.98,130.93,25.4586]
[1726513941295,7.6348,130.98,130.94,7.6369]
[1726513941296,23.776884,130.97,130.94,7.6369]
[1726513943998,23.776884,130.98,130.94,7.6369]
[1726513944372,23.776884,130.98,130.95,7.6361]
[1726513945201,25.29669375,130.98,130.95,7.6361]
[1726513945701,23.776884,130.98,130.95,7.6361]
[1726513946380,25.29669375,130.98,130.95,7.6361]
[1726513947076,32.93149375,130.98,130.94,7.637]
[1726513947593,23.776884,130.96,130.93,33.096]
[1726513947782,7.6343,130.99,130.94,7.637]
[1726513947981,23.776884,130.98,130.94,7.637]
[1726513948386,23.776884,130.98,130.95,7.6362]
[1726513949007,23.776884,131.0,130.97,7.6352]
[1726513949176,31.410484,131.0,130.96,7.6357]
[1726513949718,1.51980975,130.99,130.96,7.6357]
[1726513950003,23.776884,130.98,130.96,7.6357]
[1726513952088,1.51980975,130.97,130.95,26.7273]
[1726513952879,1.51980975,130.97,130.95,19.091]
[1726513955904,1.51980975,130.97,130.95,26.7274]
[1726513956397,31.411584,130.98,130.95,26.7274]
[1726513956594,1.51980975,130.97,130.95,26.7274]
[1726513957000,23.776884,130.98,130.95,26.7274]
[1726513958889,31.411584,130.98,130.95,26.7274]
[1726513959995,23.776884,130.98,130.95,26.7274]
[1726513960508,1.51980975,130.99,130.96,7.6354]
[1726513962521,25.29669375,130.98,130.95,26.7273]
[1726513962815,32.93149375,130.98,130.95,19.091]
[1726513963115,1.51980975,130.97,130.95,19.091]
[1726513963491,23.776884,130.96,130.93,14.0025]
[1726513966306,1.51980975,130.95,130.93,7.6374]
[1726513966512,1.51980975,130.95,130.9,6.6527]
[1726513966513,1.51980975,130.94,130.9,6.6527]
[1726513966721,23.776884,130.93,130.9,14.2919]
[1726513968430,25.29669375,130.93,130.9,14.2919]
[1726513969334,23.776884,130.93,130.9,14.2919]
[1726513971207,23.776884,130.94,130.9,14.2919]
[1726513971604,25.29669375,130.94,130.9,14.2919]
[1726513972421,32.93369375,130.94,130.9,14.2919]
[1726513972637,31.413884,130.94,130.9,14.2919]
[1726513972948,1.51980975,130.93,130.9,14.2919]
[1726513975326,31.413884,130.94,130.9,14.2919]
[1726513976631,1.51980975,130.93,130.9,14.2919]
[1726513976806,31.413884,130.94,130.9,14.2919]
[1726513977501,1.51980975,130.93,130.9,14.2919]
[1726513977700,32.02033419,130.98,130.88,15.8192336]
[1726513977701,25.29669375,130.92,130.88,0.2583336]
[1726513977919,23.776884,130.9,130.88,0.2583336]
[1726513978112,32.93609375,130.9,130.88,0.2583336]
[1726513978319,25.29669375,130.89,130.88,0.2583336]
[1726513978526,32.93669375,130.89,130.88,0.2583336]
[1726513978823,23.776884,130.89,130.88,0.2583336]
[1726513980436,25.29669375,130.89,130.88,0.2583336]
[1726513981736,32.93669375,130.89,130.88,0.2583336]
[1726513981939,31.416884,130.89,130.88,0.2583336]
[1726513984511,32.93669375,130.89,130.88,0.2583336]
[1726513984733,23.776884,130.85,130.84,0.2583336]
[1726513984915,25.29669375,130.85,130.84,0.2583336]
[1726513985517,23.776884,130.85,130.84,0.2583336]
[1726513986123,31.419184,130.85,130.84,0.2583336]
[1726513989643,31.419184,130.85,130.8,0.2583336]
[1726513989644,31.421484,130.81,130.8,0.2583336]
[1726513989850,32.94129375,130.81,130.8,0.2583336]
[1726513990827,31.421484,130.81,130.8,0.2583336]
[1726513991516,36.26498041,130.81,130.8,0.2583336]
[1726513991748,42.38218126,130.81,130.8,0.2583336]
[1726513992649,42.38218126,130.81,130.76,0.2583336]
[1726513992650,31.423884,130.77,130.76,0.2583336]
[1726513993837,43.8554561,130.77,130.76,0.2583336]
[1726513997731,43.8554561,130.77,130.72,0.2583336]
[1726513997732,23.776884,130.73,130.72,0.2583336]
[1726513997969,32.94599375,130.73,130.72,0.2583336]
[1726513998448,36.2084561,130.73,130.65,6.2952]
[1726513998759,42.33854635,130.72,130.71,0.1079631]
[1726513999131,48.90344635,130.72,130.67,0.2651033]
[1726513999338,48.90344635,130.72,130.63,0.2651033]
[1726513999339,23.776884,130.64,130.63,0.2651033]
[1726514000331,25.29669375,130.64,130.63,0.2651033]
[1726514001161,32.95129375,130.64,130.63,0.2651033]
[1726514001464,23.776884,130.6,130.59,0.2651033]
[1726514002339,23.776884,130.6,130.57,29.4037]
[1726514002340,7.6564,130.61,130.57,29.4037]
[1726514002341,23.776884,130.61,130.57,29.4037]
[1726514002531,23.776884,130.61,130.59,0.0623175]
[1726514003749,23.776884,130.62,130.59,0.0623175]
[1726514004264,25.29669375,130.62,130.59,0.0623175]
[1726514005165,23.776884,130.62,130.59,0.0623175]
[1726514005367,23.776884,130.62,130.59,7.7196175]
[1726514005865,9.17450975,130.64,130.59,7.7193175]
[1726514005866,25.29669375,130.63,130.59,7.7193175]
[1726514006873,25.29669375,130.63,130.6,7.6569]
[1726514007163,25.29669375,130.64,130.61,7.6563]
[1726514007369,23.776884,130.64,130.61,7.6563]
[1726514007548,12.4315721,130.65,130.61,7.6563]
[1726514007737,10.91176235,130.65,130.62,7.6556]
[1726514007943,10.91176235,130.65,130.63,7.6551]
[1726514008142,1.51980975,130.66,130.63,7.6551]
[1726514009453,23.776884,130.65,130.63,7.6551]
[1726514009651,23.776884,130.63,130.59,19.2055175]
[1726514009850,1.51980975,130.62,130.59,19.2055175]
[1726514010068,1.51980975,130.62,130.59,26.8626175]
[1726514012652,1.51980975,130.62,130.6,7.6568]
[1726514013947,1.51980975,130.63,130.6,7.6568]
[1726514014254,1.51980975,130.63,130.59,26.8629175]
[1726514014255,23.776884,130.62,130.59,26.8629175]
[1726514014461,1.51980975,130.61,130.59,19.2055175]
[1726514014973,1.51980975,130.61,130.59,0.0623175]
[1726514015875,25.29669375,130.6,130.59,0.0623175]
[1726514016374,23.776884,130.6,130.59,0.0623175]
[1726514017167,25.29669375,130.6,130.59,0.0623175]
[1726514017376,32.95359375,130.6,130.59,0.0623175]
[1726514019273,31.433784,130.6,130.59,0.0623175]
[1726514020171,32.95359375,130.6,130.59,0.0623175]
[1726514020351,31.433784,130.6,130.59,0.0623175]
[1726514020845,23.776884,130.6,130.59,0.0623175]
[1726514021050,25.29669375,130.6,130.59,0.0623175]
[1726514022668,32.95359375,130.6,130.59,0.0623175]
[1726514024875,31.433784,130.6,130.59,0.0623175]
[1726514025269,32.95359375,130.6,130.59,0.0623175]
[1726514026457,31.433784,130.6,130.59,0.0623175]
[1726514030586,23.776884,130.6,130.59,0.0623175]
[1726514031564,32.95359375,130.6,130.59,0.0623175]
[1726514034387,31.433784,130.6,130.59,0.0623175]
[1726514038070,23.776884,130.6,130.59,0.0623175]
[1726514038986,31.433784,130.6,130.59,0.0623175]
[1726514040863,42.34554635,130.6,130.59,0.0623175]
[1726514043499,31.433784,130.6,130.59,0.0623175]
[1726514045680,42.34554635,130.6,130.59,0.0623175]
[1726514046401,62.34554635,130.6,130.59,0.0623175]
[1726514046600,63.8653561,130.6,130.59,0.0623175]
[1726514047683,31.436184,130.56,130.55,0.4228784]
[1726514048089,23.776884,130.56,130.55,0.4228784]
[1726514050587,25.29669375,130.56,130.55,0.4228784]
[1726514050976,23.776884,130.56,130.55,0.4228784]
[1726514053780,31.436184,130.56,130.55,0.4228784]
[1726514057300,23.776884,130.56,130.55,0.4228784]
[1726514059890,9.48078209,130.66,130.56,6.1295]
[1726514060182,1.3337336,130.67,130.59,19.1437]
[1726514060385,18.56616235,130.65,130.61,7.6563]
[1726514060907,18.56616235,130.65,130.6,7.6568]
[1726514061507,31.431584,130.64,130.6,7.6568]
[1726514061701,23.776884,130.62,130.6,7.6568]
[1726514062006,23.776884,130.62,130.61,30.0]
[1726514062209,23.776884,130.62,130.56,25.2771]
[1726514062210,34.68864635,130.62,130.56,25.2771]
[1726514062401,23.776884,130.59,130.56,25.2771]
[1726514063402,23.776884,130.59,130.56,32.9363]
[1726514066019,23.776884,130.6,130.57,7.6586]
[1726514066496,23.776884,130.6,130.58,7.6581]
[1726514066697,10.91176235,130.64,130.58,34.9542711]
[1726514066912,10.91176235,130.64,130.59,15.8092711]
[1726514067085,10.91176235,130.64,130.6,26.7978]
[1726514067291,10.91176235,130.64,130.6,19.1414]
[1726514067815,10.91176235,130.64,130.62,7.6556]
[1726514068619,23.776884,130.63,130.62,7.6556]
[1726514069495,10.91176235,130.64,130.62,7.6556]
[1726514069685,15.3161,130.68,130.62,7.6556]
[1726514069686,18.56436235,130.68,130.64,7.6546]
[1726514069891,18.56436235,130.68,130.62,25.6342]
[1726514069892,9.44007445,130.67,130.63,7.655]
[1726514070119,10.9598842,130.67,130.63,7.655]
[1726514070321,18.6127842,130.67,130.63,7.655]
[1726514071493,23.776884,130.66,130.63,7.655]
[1726514072909,23.776884,130.64,130.62,33.2899]
[1726514076692,23.776884,130.65,130.62,33.2899]
[1726514078319,23.776884,130.66,130.63,7.6551]
[1726514078899,23.776884,130.67,130.64,7.6545]
[1726514080199,31.429684,130.67,130.64,7.6545]
[1726514081707,40.86975845,130.67,130.63,7.655]
[1726514082024,31.430984,130.65,130.62,19.1391]
[1726514082202,23.776884,130.63,130.62,26.7948]
[1726514085413,23.776884,130.63,130.62,19.1391]
[1726514087408,23.776884,130.63,130.62,26.7948]
[1726514098241,9.44088751,130.66,130.63,7.6546]
[1726514098539,7.6525,130.68,130.64,7.6545]
[1726514098739,20.0,130.67,130.64,7.6545]
[1726514098920,8.98540435,130.69,130.65,7.654]
[1726514099114,20.0,130.68,130.65,7.654]
[1726514099431,27.6523,130.68,130.64,26.7906]
[1726514100515,23.776884,130.67,130.65,7.6539]
[1726514101019,25.29669375,130.67,130.61,35.6721]
[1726514101223,23.776884,130.65,130.61,35.6721]
[1726514101716,23.776884,130.65,130.62,7.6556]
[1726514102622,23.776884,130.65,130.63,7.6551]
[1726514104015,23.776884,130.65,130.62,7.6557]
[1726514106240,31.430984,130.65,130.61,43.3284]
[1726514106447,31.430984,130.65,130.61,26.796]
[1726514107338,23.776884,130.65,130.61,26.796]
[1726514107552,25.29669375,130.65,130.61,26.796]
[1726514111828,32.95069375,130.65,130.61,26.796]
[1726514117842,23.776884,130.63,130.6,0.1408943]
[1726514118056,31.432284,130.63,130.6,0.1408943]
[1726514118234,20.0,130.63,130.6,19.2830943]
[1726514118441,23.776884,130.64,130.61,7.6559]
[1726514118926,10.91176235,130.65,130.62,19.139]
[1726514119127,20.0,130.66,130.63,7.6551]
[1726514119435,10.91176235,130.69,130.64,34.92962668]
[1726514119637,10.91176235,130.69,130.6,0.1408943]
[1726514119638,10.91176235,130.69,130.66,19.1331]
[1726514119948,10.91176235,130.69,130.67,7.6527]
[1726514121038,10.91176235,130.69,130.68,7.6522]
[1726514121243,0.126535,130.7,130.69,7.6516]
[1726514121554,0.126535,130.7,130.69,24.97542936]
[1726514121735,0.126535,130.7,130.69,9.18170268]
[1726514121933,0.126535,130.7,130.69,7.6516]
[1726514122655,0.126535,130.7,130.69,23.44532668]
[1726514122954,0.126535,130.7,130.69,7.6516]
[1726514124653,29.43603905,130.74,130.7,7.651]
[1726514124654,29.16860975,130.74,130.7,7.651]
[1726514124963,0.218229,130.71,130.7,7.651]
[1726514129236,0.218229,130.71,130.69,7.6515]
[1726514129660,0.218229,130.71,130.68,34.92302668]
[1726514129963,0.218229,130.71,130.7,23.44482668]
[1726514130541,0.218229,130.71,130.7,7.6511]
[1726514130737,0.218229,130.71,130.69,22.3383]
[1726514131060,0.218229,130.71,130.69,7.6516]
[1726514132249,0.218229,130.71,130.7,7.6511]
[1726514133733,0.218229,130.71,130.7,23.44482668]
[1726514133939,0.218229,130.71,130.7,24.97416759]
[1726514134140,0.218229,130.71,130.7,44.48992668]
[1726514135061,0.218229,130.71,130.7,28.6962]
[1726514137262,0.218229,130.71,130.7,13.6691]
[1726514141860,0.218229,130.71,130.7,7.6511]
[1726514143167,0.218229,130.71,130.68,19.1293]
[1726514143370,0.218229,130.71,130.68,26.7811]
[1726514144163,0.218229,130.71,130.69,7.6516]
[1726514144567,0.218229,130.71,130.7,7.6511]
[1726514146970,0.218229,130.71,130.69,7.6515]
[1726514147466,0.218229,130.71,130.7,7.6511]
[1726514149446,0.218229,130.71,130.7,23.44482668]
[1726514150754,0.218229,130.71,130.7,45.37162668]
[1726514152882,0.218229,130.71,130.7,29.5779]
[1726514158381,0.218229,130.71,130.7,45.37162668]
[1726514160478,0.218229,130.71,130.7,29.5779]
[1726514163063,0.218229,130.71,130.7,7.6511]
[1726514163583,0.218229,130.71,130.69,7.6515]
[1726514163759,0.218229,130.71,130.68,26.7815]
[1726514163959,0.218229,130.71,130.68,19.1293]
[1726514164580,23.776884,130.69,130.66,7.6532]
[1726514164781,23.776884,130.69,130.65,57.402]
[1726514164782,31.428584,130.69,130.65,26.7879]
[1726514164984,31.428584,130.69,130.65,19.134]
[1726514165282,31.428584,130.69,130.61,15.79372668]
[1726514165283,23.776884,130.67,130.63,7.6551]
[1726514165481,32.94959375,130.67,130.63,7.6551]
[1726514165783,31.429784,130.67,130.63,7.6551]
[1726514166162,23.776884,130.67,130.63,7.6551]
[1726514166360,23.776884,130.67,130.64,7.6543]
[1726514166767,31.429084,130.68,130.64,7.6543]
[1726514167173,23.776884,130.68,130.64,7.6543]
[1726514171391,23.776884,130.68,130.65,7.6539]
[1726514177399,1.73803875,130.71,130.68,7.6521]
[1726514177691,31.645613,130.71,130.67,7.6526]
[1726514182187,23.995113,130.71,130.68,7.6522]
[1726514183489,1.51980975,130.7,130.66,19.1334]
[1726514183667,23.776884,130.69,130.66,19.1334]
[1726514183864,31.428584,130.69,130.66,19.1334]
[1726514184086,31.428584,130.69,130.65,7.6538]
[1726514184367,9.17210975,130.68,130.64,7.6542]
[1726514184863,32.94959375,130.67,130.64,7.6542]
[1726514185066,31.429784,130.67,130.64,7.6542]
[1726514185270,31.429784,130.67,130.63,26.7916]
[1726514186290,9.17330975,130.66,130.63,19.1367]
[1726514186792,23.776884,130.66,130.63,26.7918]